Cogmind - Beta 15 @@@ ROGUE MODE // 2025.05.26 @ 17:33:25 Player: Man of Plasma Result: Destroyed by as-66696 with Assembled Maul Performance ------------- Evolutions (0) 0 Regions Visited (2) 400 Robots Destroyed (15) 75 Value Destroyed (289) 289 Prototype IDs (2) 40 Alien Tech Used (0) 0 Bonus (0) 0 TOTAL SCORE: 804 Bonus ------- None Cogmind --------- Core Integrity 0/250 Matter 287/300 Energy 100/100 System Corruption 5% Temperature Cool (0) Movement Core (100) Ox1 Location -10/Mines Parts ------- > --- POWER (1) -------- (None) > --- PROPULSION (2) --- (None) > --- UTILITY (2) ------ Small Storage Unit > --- WEAPON (2) ------- (None) > --- INVENTORY (8) ---- Light Ion Engine Light Ion Engine Light Assault Rifle Mining Laser Peak State ------------ > --- POWER ------------ Light Nuclear Core > --- PROPULSION ------- Light Treads Light Treads > --- UTILITY ---------- Small Storage Unit Sensor Array > --- WEAPON ----------- Small Laser Assault Rifle > --- INVENTORY -------- Light Ion Engine Light Ion Engine Light Treads Light Assault Rifle Grenade Launcher Mining Laser [Rating: 9] Favorites ----------- Power Ion Engine Engine Ion Engine Power Core Light Nuclear Core Propulsion Light Treads Treads Light Treads Utility Small Storage Unit Device Sensor Array Storage Small Storage Unit Weapon Assault Rifle Energy Gun Small Laser Ballistic Gun Assault Rifle Launcher Grenade Launcher Build | -11 -10 -10 ------- Run | Yrd Mat Min Slots Evolved . | . . . Power . | . . . Propulsion . | . . . Utility . | . . . Weapon . | . . . Parts Attached 14 | 8 6 . Power 4 | 2 2 . Engine 3 | 2 1 . Core 1 | . 1 . Reactor . | . . . Propulsion 3 | 2 1 . Treads 3 | 2 1 . Leg . | . . . Wheel . | . . . Hover . | . . . Flight . | . . . Utility 3 | 1 2 . Device 2 | . 2 . Storage 1 | 1 . . Processor . | . . . Hackware . | . . . Protection . | . . . Artifact . | . . . Weapon 4 | 3 1 . Energy Gun 1 | 1 . . Energy Cannon . | . . . Ballistic Gun 2 | 2 . . Ballistic Cannon . | . . . Launcher 1 | . 1 . Special Weapon . | . . . Impact Weapon . | . . . Slashing Weapon . | . . . Piercing Weapon . | . . . Special Melee Weapon . | . . . Unidentified Prototypes . | . . . Parts Lost 10 | . 2 8 Power 2 | . 1 1 Propulsion 3 | . . 3 Utility 2 | . 1 1 Weapon 3 | . . 3 Highest Loss Streak 8 | . 1 8 To Critical Strikes . | . . . Average Backups 4 | 1 4 5 Power 1 | . 1 2 Propulsion . | . . . Utility . | . . . Weapon 2 | . 2 3 Tool/Special . | . . . Unused Backups 1 | . . 1 Power . | . . . Propulsion . | . . . Utility . | . . . Weapon 1 | . . 1 Tool/Special . | . . . Average Slot Usage (%) 90 | . 92 68 Engine 8 | . 8 . Core 4 | . 4 11 Treads 27 | . 28 19 Device 7 | . 7 5 Storage 14 | . 14 14 Energy Gun 13 | . 13 5 Ballistic Gun 13 | . 14 11 Peak Build Rating 9 | 6 9 9 Average Rating 6 | 4 7 6 On Entrance 5 | . 6 9 Naked Turns . | . . . Heaviest Build 16 | 13 16 14 Greatest Support 40 | 40 40 40 Greatest Overweight (x) 1 | . . 1 Average Overweight (x) . | . . . Largest Inventory Capacity 8 | 8 8 8 Average Capacity 7 | 7 8 8 Most Carried 7 | 2 7 6 Average Carried 4 | 1 4 5 Final Capacity 8 | 8 8 8 Final Carried 6 | 2 6 4 Class Distribution -------------------- 100% | Mutant Dominant Class ---------------- Mutant | -10/Materials Mutant | -10/Mines Resources | -11 -10 -10 ----------- Run | Yrd Mat Min Matter Collected 435 | 236 199 . Remotely . | . . . Salvage Created 385 | . 362 23 Parts 26 | . 26 . Haulers Intercepted . | . . . Recyclers Shooed . | . . . Parts Field Recycled . | . . . Retrieved Matter . | . . . Parts Self-Destructed . | . . . Prevented . | . . . Kills | -11 -10 -10 ------- Run | Yrd Mat Min Combat Hostiles Destroyed 13 | . 11 2 Guns 11 | . 10 1 AOE 2 | . 1 1 Classes Destroyed 6 | . 5 1 Worker 1 | . 1 . Mechanic 1 | . 1 . Watcher 2 | . 2 . Swarmer 6 | . 6 . Grunt 5 | . 5 . Assembled 2 | . . 2 Best Kill Streak 4 | . 4 2 Combat Bots Only 3 | . 3 2 Max Kills in Single Turn 2 | . 2 1 Gunslinging 1 | . 1 . Exploded 1 | . 1 1 Melee . | . . . Uniques/NPCs Destroyed . | . . . Combat | -11 -10 -10 -------- Run | Yrd Mat Min Hostile Shots Fired 110 | . 49 61 Missed 36 | . 16 20 Hits 74 | . 33 41 Melee 10 | . . 10 Projectile 64 | . 33 31 AOE 5 | . . 5 Critical Strikes 1 | . 1 . Part Disruptions 3 | . . 3 Damage Taken 1226 | . 400 826 Core 271 | . 35 236 Absorbed by Shields . | . . . Core Remaining (%) 100 | 100 . . Volleys Fired 30 | . 27 3 Largest 2 | . 2 2 Hottest 60 | . 60 60 Shots Fired 58 | . 54 4 Gun 55 | . 52 3 Cannon . | . . . Launcher 3 | . 2 1 Special . | . . . Kinetic 29 | . 27 2 Thermal 26 | . 25 1 Explosive 3 | . 2 1 Electromagnetic . | . . . Robot Hit Streak 14 | . 14 2 Robot Miss Streak 2 | . 2 2 Penetration Max . | . . . Secondary Targets 3 | . 3 . Max Gunslinging Chain 1 | . 1 . Shots Hit Robots 41 | . 39 2 Core Hits 33 | . 27 6 Critical Kills . | . . . Critical Parts Destroyed . | . . . Critical Strikes . | . . . Melee Attacks . | . . . Impact . | . . . Slashing . | . . . Piercing . | . . . Sneak Attacks . | . . . Combat Hostiles . | . . . Follow-up Attacks . | . . . Damage Inflicted 800 | . 675 125 Guns 466 | . 452 14 Cannons . | . . . Explosions 332 | . 222 110 Melee . | . . . Ramming 2 | . 1 1 Kinetic 233 | . 219 14 Thermal 233 | . 233 . Explosive 332 | . 222 110 Electromagnetic . | . . . Impact . | . . . Slashing . | . . . Piercing . | . . . Highest Corruption 5 | . 1 5 Average Corruption 1 | . 1 2 Corruption Purged . | . . . Corruption Blocked . | . . . Effects 4 | . 4 . Message Errors 2 | . 2 . Matter Fused 1 | . 1 . Energy Discharges 1 | . 1 . Overload Shots . | . . . Overflow Damage 18 | . 9 9 Projectiles . | . . . Explosions 18 | . 9 9 Melee . | . . . Knockbacks . | . . . Impact . | . . . Kinetic . | . . . Secondary . | . . . Self-Inflicted Damage 83 | . 48 35 Shots 3 | . 2 1 Rammed 1 | . . 1 Targets Rammed 2 | . 1 1 Kicked . | . . . Crushed 1 | . 1 . Highest Temperature 81 | . 81 46 Average Temperature 23 | . 25 18 Received Heat Transfer 545 | . 165 380 Siege Activations . | . . . Martial Activations . | . . . Shielding Activations . | . . . Robots Disrupted . | . . . Combat Hostiles . | . . . Robots Corrupted . | . . . Combat Hostiles . | . . . Parts Fried . | . . . Impact Corruptions . | . . . Robots Melted . | . . . Combat Hostiles . | . . . Parts Melted . | . . . Heat Transferred 525 | . 525 . Parts Sabotaged . | . . . Parts Stolen . | . . . Parts Stripped . | . . . Power Chain Reactions . | . . . Alert | -11 -10 -10 ------- Run | Yrd Mat Min Maximum Alert Level . | . . . Low Security (%) 100 | 100 100 100 Level 1 . | . . . Level 2 . | . . . Level 3 . | . . . Level 4 . | . . . Level 5 . | . . . High Security . | . . . Max Security . | . . . Peak Influence 122 | . 122 3 Initial . | . . . Average 40 | . 47 . Influence Increases 349 | . 346 3 Destroy 0b10 Robot/C 220 | . 220 . Destroy 0b10 Robot/NC 20 | . 20 . Destroy Leader 44 | . 44 . Successful Hack 33 | . 33 . Destroy Structure 17 | . 14 3 Lose Combat Pursuer 15 | . 15 . Influence Decreases 349 | . 346 3 Time Decay 229 | . 226 3 Lost Part 20 | . 20 . Purge Threat 100 | . 100 . Squads Dispatched 2 | . 2 . Investigation 2 | . 2 . Extermination . | . . . Reinforcement . | . . . Assault . | . . . Garrison . | . . . Intercept . | . . . Searches Triggered . | . . . Construction Impeded . | . . . Haulers Reinforced . | . . . Active Scanning Responses . | . . . Cargo Convoy Interrupts . | . . . Stealth | -11 -10 -10 --------- Run | Yrd Mat Min Distress Signals . | . . . Communications Jammed . | . . . Distress Signals . | . . . Times Spotted 40 | . 17 23 Peak Tracking Total 22 | . 4 22 Tactical Retreats 2 | . 1 1 Traps | -11 -10 -10 ------- Run | Yrd Mat Min Traps Triggered 2 | . 2 . Indirectly . | . . . Trap Hack Attempts . | . . . Triggered . | . . . Disarmed . | . . . Reprogrammed . | . . . Reused . | . . . Traps Extracted . | . . . Installed . | . . . Triggered . | . . . Machines | -11 -10 -10 ---------- Run | Yrd Mat Min Machines Disabled . | . . . Max in Single Turn . | . . . Machines Repaired . | . . . Machines Dismantled . | . . . Machines Sabotaged . | . . . Overloaded Fab Kills . | . . . Hacking | -11 -10 -10 --------- Run | Yrd Mat Min Machines Accessed 7 | . 7 . Terminals 6 | . 6 . Fabricators . | . . . Repair Stations . | . . . Recycling Units 1 | . 1 . Scanalyzers . | . . . Garrison Access . | . . . Total Hacks 18 | . 18 . Successful 9 | . 9 . Failed 9 | . 9 . Catastrophic 1 | . 1 . Database Lockouts . | . . . Manual 10 | . 10 . Terminals 16 | . 16 . Fabricators . | . . . Repair Stations . | . . . Recycling Units 2 | . 2 . Scanalyzers . | . . . Garrison Access . | . . . Terminal Hacks 3 | . 3 . Prototype ID Bank 1 | . 1 . Branch Access Points 1 | . 1 . Unreport Threat 1 | . 1 . Fabricator Hacks . | . . . Repair Station Hacks . | . . . Recycling Unit Hacks 1 | . 1 . Retrieve Components 1 | . 1 . Scanalyzer . | . . . Garrison Access Hacks . | . . . Unauthorized Hacks 5 | . 5 . Terminals 5 | . 5 . Assimilate 1 | . 1 . Botnet 4 | . 4 . Fabricators . | . . . Repair Stations . | . . . Recycling Units . | . . . Scanalyzers . | . . . Garrison Access . | . . . Data Cores Recovered . | . . . Used . | . . . Hacking Detections 6 | . 6 . Full Trace Events 1 | . 1 . Feedback Events . | . . . Feedback Blocked . | . . . Robot Schematics Acquired . | . . . Robots Built . | . . . Authchips . | . . . Time . | . . . Total Robot Build Rating . | . . . Part Schematics Acquired . | . . . Parts Built . | . . . Authchips . | . . . Time . | . . . Total Part Build Rating . | . . . Parts Repaired . | . . . Time . | . . . Parts Recycled . | . . . Recycled Matter . | . . . Retrieved Matter . | . . . Retrieved Components 9 | . 9 . Parts Scanalyzed . | . . . Part Schematics Acquired . | . . . Parts Damaged . | . . . Bothacking | -11 -10 -10 ------------ Run | Yrd Mat Min Used RIF Installer . | . . . Robots Hacked . | . . . Non-combat . | . . . Combat . | . . . Robot Hacks Applied . | . . . Relay Couplers Released . | . . . Fabnet Peak Effective % . | . . . Robots Rewired . | . . . Allies Hacked . | . . . Hacks Repelled . | . . . Allies | -11 -10 -10 -------- Run | Yrd Mat Min Total Allies . | . . . Largest Group . | . . . Highest-Rated Group . | . . . Highest-Rated Ally . | . . . Total Orders . | . . . Ally Attacks . | . . . Total Damage . | . . . Kills . | . . . Allies Corrupted . | . . . Allies Melted . | . . . Intel | -11 -10 -10 ------- Run | Yrd Mat Min Active Infowar (turns) 422 | . 407 15 Sensors 422 | . 407 15 Robot Analysis Total . | . . . Derelict Logs Recovered . | . . . Drone Launches . | . . . Drone Recoveries . | . . . Exploration | -11 -10 -10 ------------- Run | Yrd Mat Min Turns Passed 833 | 68 722 43 Spaces Moved 414 | 38 356 20 Core 6 | 3 . 3 Treads 408 | 35 356 17 Legs . | . . . Wheels . | . . . Hover . | . . . Flight . | . . . Fastest Speed 50 | 50 160 100 Average Speed 158 | 151 160 151 Slowest Speed 160 | 160 160 160 Overloaded Moves . | . . . Propulsion Burnouts . | . . . Robots Hopped . | . . . Potential Cave-ins . | . . . Cave-ins Triggered . | . . . Exploration Rate (%) 27 | 4 64 13 Regions Visited 2 Branch Regions 1 Pre-discovered Areas . | . . . Known Exits Taken 1 | . 1 . Unknown Exits Taken 1 | 1 . . Scrap Searched . | . . . Spaces Dug . | . . . Terrain Destroyed 20 | . 14 6 Melee . | . . . Projectile . | . . . AOE 20 | . 14 6 Terrain Rammed . | . . . Walls Destroyed . | . . . Machines Disabled . | . . . Actions | -11 -10 -10 --------- Run | Yrd Mat Min Total 524 | 45 451 28 Wait 60 | . 58 2 Move 412 | 37 355 20 Hop . | . . . Pick Up 3 | . 3 . Fast Attach 8 | 6 2 . Attach 3 | . 1 2 Detach . | . . . Swap 6 | 2 4 . Drop . | . . . Fire 30 | . 27 3 Melee . | . . . Ram 1 | . . 1 Kick . | . . . Crush 1 | . 1 . Escape Stasis . | . . . Rewire . | . . . Trap . | . . . Miscellaneous . | . . . Route ------- -11/Scrapyard -10/Materials (discovered 3 exits: [*Mat] / *Min x2) -10/Mines (discovered 1 exit: [*Mat]) History --------- Turn | Location | Event 20 | -11/Scrapyard | Discovered new exit (range 15) 69 | -11/Scrapyard | Entered Materials 273 | -10/Materials | Discovered new exit (range 15) 303 | -10/Materials | Build established: Mutant 377 | -10/Materials | Discovered new exit (range 16) 652 | -10/Materials | Discovered new exit (range 7) 676 | -10/Materials | Identified exit to Mines 791 | -10/Materials | Entered Mines 792 | -10/Mines | Assembled infested the area 794 | -10/Mines | Discovered new exit (range 12) 826 | -10/Mines | Core integrity fell below 50% 832 | -10/Mines | Core integrity fell below 20% 834 | -10/Mines | Destroyed by as-66696 with Assembled Maul Last Messages --------------- 00810_ The unstable cave ceiling collapses. 00815_ as-33025 destroyed. 00816_ The unstable cave ceiling collapses. 00816_ Lgt. Treads destroyed. 00816_ System corrupted by crushing effect (+4). 00821_ Lgt. Treads destroyed. 00823_ Lgt. Nuclear Core destroyed. 00824_ Assault Rifle destroyed. 00825_ The unstable cave ceiling collapses. 00825_ Lgt. Treads destroyed. 00827_ The unstable cave ceiling collapses. 00828_ as-73690 destroyed. 00828_ Grenade Launcher destroyed. 00828_ Destroyed Grenade Launcher. 00829_ The unstable cave ceiling collapses. 00829_ Knocked back. 00832_ The unstable cave ceiling collapses. 00832_ Slammed into YI-UF0. 00834_ The unstable cave ceiling collapses. [Achievement: Achiever] Map ----- +----------------------------------------------------+ | ???????????????????????????????????? | | ???????????????????????????????????? | | ???????????????????????????????????? | | ???????????????????????????????????? | | ???????????????????????????????????? | | ???????????????????????????????????? | | ???????????????????????????????????? | | ???????????????????????????????????? | | ???????????????????????????????????? | | ???????????????????????????????????? | | ?????????????????? #??????????????? | | ?????????????????? #?????????????? | | ????????????????? ##????????????? | | ????????????????? ###??????????? | | ???????????????? ?????????? | | ???????????????? ?????????? | | ???????????????? ????????? | | ###########???? ????????? | | # # ##??? ????????? | | # ### # ##?# #????????? | | # ## #?????????? | | a #??????????? | | < a% #???????????? | | a a #???????????? | | % a ag ##???????????? | | # @ # ## ##????????????? | | # aa # ##### #???##?????????????? | | # # #??? #??????????????????? | | # ##????#??????????????????? | | ### ##????????????????????????? | | ??# #????????????????????????? | | ?# #????????????????????????? | | ?## #????????????????????????? | | ??# # ##????????????????????????? | | ??## ###?????????????????????????? | | ???### #???????????????????????????? | | ?????# ??????????????????????????? | | ?????# ###?????????????????????????? | | ?????# #???????????????????????????? | | ?????# ???????????????????????????? | | ????? ???????????????????????????? | | ????? ???????????????????????????? | | ????? ???????????????????????????? | | ????? ???????????????????????????? | | ????? ???????????????????????????? | | ?????## ???????????????????????????? | | ???????#???????????????????????????? | | ???????????????????????????????????? | | ???????????????????????????????????? | | ???????????????????????????????????? | +----------------------------------------------------+ Best States ------------- Heat Dissipation 25 Energy Generation 14 Energy Capacity 250 Matter Stores 300 Matter Capacity 300 Sight Range 16 Robot Scan Range 14 Terrain Scan Density 10 Evasion (%) 40 Recoil Reduction 2 Item Schematics ----------------- None Robot Schematics ------------------ None Fabricated ------------ Nothing Repaired ---------- Nothing Alien Tech Used ----------------- None Achievements -------------- Achiever Quantum Hacking Challenges ------------ None Game ------ Seed ReactiveMetafiberSpoofer Manual? 0 Play Time 00:11:38 Cumulative 23.7 hours Start 2025.05.26 @ 17:23:07 End 2025.05.26 @ 17:33:25 Sessions 1 Manual Loads 0 Difficulty Rogue Special Mode None Game No. 41 Rogue 41 Adventurer 0 Explorer 0 Win Type - Total 0 Types 0/0/0/0/0/0/0/0/0/0 Lore% 28 Gallery% 28 Achievement% 25 Wizard Run 0 Options --------- Layout 1 ASCII 0 Keyboard 0 Movement Numpad Keybinds 0 Fullscreen 1 Font 24/Smallcaps Map View 50x35 Zoom Use 0% Tactical HUD 1 Map Filters NONE Filters NONE Steam 1 RUN: 58d0ba4e-f67e-462c-9c94-820b8e4135e5